Cogmind - Beta 12 @@@ ROGUE MODE // 2023.08.07 @ 03:07:55 Player: ZOT Result: Destroyed by H-55 Commando with Gauss Rifle Performance ------------- Evolutions (2) 1000 Regions Visited (6) 1200 Robots Destroyed (30) 150 Value Destroyed (936) 936 Prototype IDs (24) 480 Alien Tech Used (0) 0 Bonus (322) 322 TOTAL SCORE: 4088 Bonus ------- High Alert Combat Kills 22 Aligned with FarCom 300 Cogmind --------- Core Integrity 0/550 Matter 290/300 Energy 100/100 System Corruption 0% Temperature Cool (0) Movement Core (400) Ox7 Location -8/Storage Parts ------- > --- POWER (2) -------- (None) > --- PROPULSION (4) --- (None) > --- UTILITY (3) ------ Large Storage Unit > --- WEAPON (2) ------- Flail > --- INVENTORY (15) --- Ion Engine Light Ion Engine Light Ion Engine Light Ion Engine Aluminum Leg Wheel Armored Wheel Terrain Scan Processor Terrain Scan Processor Seismic Detector Hardened Light Armor Plating Mining Laser Peak State ------------ > --- POWER ------------ Light Ion Engine Nuclear Core > --- PROPULSION ------- Light Treads Light Treads Light Treads Aluminum Leg > --- UTILITY ---------- Improved Heat Sink Large Storage Unit Cloak of Protection > --- WEAPON ----------- Improved Medium Laser Flak Cannon > --- INVENTORY -------- Ion Engine Light Ion Engine Light Ion Engine Light Ion Engine Aluminum Leg Wheel Wheel Terrain Scanner Terrain Scan Processor Terrain Scan Processor Seismic Detector Hardened Light Armor Plating Small Laser EM Pulse Cannon Mining Laser [Rating: 28] Favorites ----------- Power Light Ion Engine Engine Light Ion Engine Power Core Nuclear Core Propulsion Light Treads Treads Light Treads Leg Aluminum Leg Wheel Wheel Utility Large Storage Unit Device Cloak of Protection Storage Large Storage Unit Weapon Improved Medium Laser Energy Gun Improved Medium Laser Energy Cannon EM Pulse Cannon Ballistic Gun Assault Rifle Ballistic Cannon Flak Cannon Special Weapon Mining Laser Impact Weapon Flail Build | -11 -10 -10 -10 -9 -8 -8 ------- Run | Jun Mat Min Exi Min Mat Sto Slots Evolved 4 | . . . . . 4 . Power 1 | . . . . . 1 . Propulsion 2 | . . . . . 2 . Utility 1 | . . . . . 1 . Weapon . | . . . . . . . Parts Attached 40 | 7 4 1 5 . 17 6 Power 5 | 1 . . 1 . 3 . Engine 4 | 1 . . 1 . 2 . Core 1 | . . . . . 1 . Reactor . | . . . . . . . Propulsion 13 | 2 . . 1 . 7 3 Treads 7 | 1 . . 1 . 3 2 Leg 2 | . . . . . 2 . Wheel 4 | 1 . . . . 2 1 Hover . | . . . . . . . Flight . | . . . . . . . Utility 8 | 2 1 . 2 . 3 . Device 6 | 1 1 . 1 . 3 . Storage 2 | 1 . . 1 . . . Processor . | . . . . . . . Hackware . | . . . . . . . Protection . | . . . . . . . Artifact . | . . . . . . . Weapon 14 | 2 3 1 1 . 4 3 Energy Gun 6 | 1 2 1 . . . 2 Energy Cannon 1 | . . . . . 1 . Ballistic Gun 1 | . 1 . . . . . Ballistic Cannon 3 | . . . . . 3 . Launcher . | . . . . . . . Special Weapon 2 | 1 . . 1 . . . Impact Weapon 1 | . . . . . . 1 Slashing Weapon . | . . . . . . . Piercing Weapon . | . . . . . . . Special Melee Weapon . | . . . . . . . Unidentified Prototypes 2 | . 1 . 1 . . . Parts Lost 16 | . . . . . 5 11 Power 2 | . . . . . 1 1 Propulsion 6 | . . . . . 2 4 Utility 4 | . . . . . 2 2 Weapon 4 | . . . . . . 4 Highest Loss Streak 11 | . . . . . 3 11 To Critical Strikes . | . . . . . . . Average Slot Usage (%) 92 | . 85 85 95 100 95 78 Engine 8 | . . . 10 14 12 . Core 1 | . . . . . 3 7 Treads 22 | . 14 14 24 28 22 22 Leg 3 | . . . . . 11 . Wheel 4 | . 14 14 4 . . 8 Device 15 | . 14 14 14 14 17 14 Storage 11 | . 14 14 14 14 9 9 Energy Gun 15 | . 14 28 25 14 6 1 Energy Cannon 1 | . . . . . 2 6 Ballistic Cannon 3 | . . . . . 7 7 Special Weapon 3 | . 8 . 2 14 1 . Naked Turns . | . . . . . . . Heaviest Build 51 | 8 11 10 37 37 51 41 Greatest Support 60 | 10 10 10 40 40 60 60 Greatest Overweight (x) 7 | . 1 . . . 1 7 Average Overweight (x) . | . . . . . . 1 Largest Inventory Capacity 15 | 8 8 8 15 15 15 15 Average Capacity 13 | 7 8 8 13 15 15 15 Most Carried 15 | 8 8 8 8 11 15 15 Average Carried 9 | 5 7 7 7 10 11 13 Final Capacity 15 | 8 8 8 15 15 15 15 Final Carried 14 | 8 8 8 7 11 14 12 Class Distribution -------------------- 86% | Mutant 12% | Scavenger-Skirmisher Dominant Class ---------------- Mutant | -10/Materials Mutant | -10/Mines Mutant | -10/Exiles Mutant | -9/Mines Mutant | -8/Materials Scavenger-Skirmisher | -8/Storage Resources | -11 -10 -10 -10 -9 -8 -8 ----------- Run | Jun Mat Min Exi Min Mat Sto Matter Collected 836 | 270 36 . . 79 375 76 Remotely . | . . . . . . . Salvage Created 1182 | 92 36 . . . 762 292 Parts 65 | 5 1 . . . 42 17 Haulers Intercepted . | . . . . . . . Recyclers Shooed 1 | . . . . . 1 . Parts Field Recycled . | . . . . . . . Retrieved Matter . | . . . . . . . Parts Self-Destructed . | . . . . . . . Prevented . | . . . . . . . Kills | -11 -10 -10 -10 -9 -8 -8 ------- Run | Jun Mat Min Exi Min Mat Sto Combat Hostiles Destroyed 22 | . 3 . . . 15 4 Guns 6 | . 3 . . . 2 1 Cannons 16 | . . . . . 13 3 Classes Destroyed 10 | 2 1 . . . 7 . Worker 2 | . . . . . 2 . Builder 1 | . . . . . 1 . Tunneler 1 | 1 . . . . . . Recycler 3 | 1 . . . . 1 1 Watcher 1 | . . . . . 1 . Swarmer 4 | . 3 . . . 1 . Grunt 9 | . . . . . 8 1 Brawler 1 | . . . . . 1 . Sentry 7 | . . . . . 4 3 Hunter 1 | . . . . . 1 . Best Kill Streak 4 | 2 3 . . . 4 3 Combat Bots Only 3 | . 3 . . . 3 3 Max Kills in Single Turn 2 | 1 1 . . . 2 2 Gunslinging . | . . . . . . . Exploded . | . . . . . . . Melee . | . . . . . . . Uniques/NPCs Destroyed . | . . . . . . . Combat | -11 -10 -10 -10 -9 -8 -8 -------- Run | Jun Mat Min Exi Min Mat Sto Damage Taken 2960 | . 109 . 279 . 998 1574 Core 700 | . 20 . 121 . 92 467 Absorbed by Shields 190 | . . . . . 190 . Regen/Repaired (Parts) 114 | . . . . . . 114 Core Remaining (%) 71 | 100 . . . 43 . . Volleys Fired 83 | 5 7 . 18 . 43 10 Largest 2 | 1 2 . 1 . 2 2 Hottest 107 | 40 76 . 100 . 107 107 Shots Fired 137 | 5 12 . 18 . 86 16 Gun 53 | 5 12 . . . 31 5 Cannon 66 | . . . . . 55 11 Launcher . | . . . . . . . Special 18 | . . . 18 . . . Kinetic 56 | . 5 . . . 43 8 Thermal 66 | 5 7 . 18 . 31 5 Explosive . | . . . . . . . Electromagnetic 15 | . . . . . 12 3 Robot Hit Streak 14 | 5 5 . . . 14 8 Robot Miss Streak 4 | . 1 . . . 4 4 Penetration Max . | . . . . . . . Secondary Targets 1 | . 1 . . . . . Max Gunslinging Chain 1 | . 1 . . . . . Shots Hit Robots 94 | 5 8 . . . 69 12 Core Hits 72 | 3 3 . . . 55 11 Critical Kills . | . . . . . . . Critical Parts Destroyed . | . . . . . . . Critical Strikes 4 | . 2 . . . 2 . Burn 3 | . 2 . . . 1 . Corrupt 1 | . . . . . 1 . Melee Attacks 8 | . . . . . . 8 Impact 8 | . . . . . . 8 Slashing . | . . . . . . . Piercing . | . . . . . . . Sneak Attacks . | . . . . . . . Combat Hostiles . | . . . . . . . Follow-up Attacks . | . . . . . . . Damage Inflicted 1908 | 53 125 . . . 1376 354 Guns 685 | 53 125 . . . 439 68 Cannons 1113 | . . . . . 937 176 Explosions . | . . . . . . . Melee 110 | . . . . . . 110 Ramming . | . . . . . . . Kinetic 833 | . 23 . . . 697 113 Thermal 662 | 53 102 . . . 439 68 Explosive . | . . . . . . . Electromagnetic 303 | . . . . . 240 63 Impact 110 | . . . . . . 110 Slashing . | . . . . . . . Piercing . | . . . . . . . Highest Corruption . | . . . . . . . Average Corruption . | . . . . . . . Corruption Purged . | . . . . . . . Corruption Blocked . | . . . . . . . Overload Shots . | . . . . . . . Overflow Damage 27 | . . . . . 27 . Projectiles 19 | . . . . . 19 . Explosions 8 | . . . . . 8 . Melee . | . . . . . . . Knockbacks 37 | . . . . . 28 9 Impact 2 | . . . . . . 2 Kinetic 33 | . . . . . 26 7 Secondary 2 | . . . . . 2 . Self-Inflicted Damage 84 | . . . . . 84 . Shots 1 | . . . . . 1 . Rammed . | . . . . . . . Targets Rammed . | . . . . . . . Kicked . | . . . . . . . Crushed . | . . . . . . . Highest Temperature 412 | . 37 . 42 . 412 101 Average Temperature 94 | . 21 . 16 . 140 55 Received Heat Transfer 1095 | . 12 . . . 435 648 Effects 5 | . . . . . 5 . Shutdowns 2 | . . . . . 2 . Energy Bleed 2 | . . . . . 2 . Interference 1 | . . . . . 1 . Siege Activations . | . . . . . . . Robots Corrupted . | . . . . . . . Combat Hostiles . | . . . . . . . Parts Fried 1 | . . . . . 1 . Impact Corruptions . | . . . . . . . Robots Melted . | . . . . . . . Combat Hostiles . | . . . . . . . Parts Melted 1 | . . . . . 1 . Heat Transferred 1679 | 125 370 . . . 1036 148 Parts Sabotaged . | . . . . . . . Parts Stolen . | . . . . . . . Parts Stripped . | . . . . . . . Power Chain Reactions . | . . . . . . . Missiles Intercepted . | . . . . . . . Alert | -11 -10 -10 -10 -9 -8 -8 ------- Run | Jun Mat Min Exi Min Mat Sto Peak Influence 418 | 10 123 47 . . 418 215 Initial 113 | . 6 47 . . . 113 Average 111 | 3 51 47 . . 162 137 Maximum Alert Level 2 | . . . . . 2 1 Low Security (%) 79 | 100 100 100 . 100 64 85 Level 1 17 | . . . . . 31 14 Level 2 2 | . . . . . 4 . Level 3 . | . . . . . . . Level 4 . | . . . . . . . Level 5 . | . . . . . . . High Security . | . . . . . . . Max Security . | . . . . . . . Squads Dispatched 7 | . 1 . . . 3 3 Investigation 3 | . . . . . 2 1 Extermination . | . . . . . . . Reinforcement 4 | . 1 . . . 1 2 Assault . | . . . . . . . Garrison . | . . . . . . . Intercept . | . . . . . . . Searches Triggered . | . . . . . . . Construction Impeded . | . . . . . . . Haulers Reinforced . | . . . . . . . Active Scanning Responses . | . . . . . . . Cargo Convoy Interrupts . | . . . . . . . Stealth | -11 -10 -10 -10 -9 -8 -8 --------- Run | Jun Mat Min Exi Min Mat Sto Distress Signals 3 | . 1 . . . 1 1 Communications Jammed . | . . . . . . . Distress Signals . | . . . . . . . Times Spotted 44 | . 7 . . . 26 11 Peak Tracking Total 8 | . 5 . . . 8 5 Tactical Retreats 4 | . . . . . 4 . Traps | -11 -10 -10 -10 -9 -8 -8 ------- Run | Jun Mat Min Exi Min Mat Sto Traps Triggered 1 | . . . . . 1 . Indirectly . | . . . . . . . Trap Hack Attempts . | . . . . . . . Triggered . | . . . . . . . Disarmed . | . . . . . . . Reprogrammed . | . . . . . . . Reused . | . . . . . . . Traps Extracted . | . . . . . . . Installed . | . . . . . . . Triggered . | . . . . . . . Machines | -11 -10 -10 -10 -9 -8 -8 ---------- Run | Jun Mat Min Exi Min Mat Sto Machines Disabled 1 | . . . . . 1 . Max in Single Turn 1 | . . . . . 1 . Machines Repaired . | . . . . . . . Machines Sabotaged . | . . . . . . . Overloaded Fab Kills . | . . . . . . . Hacking | -11 -10 -10 -10 -9 -8 -8 --------- Run | Jun Mat Min Exi Min Mat Sto Machines Accessed 11 | . 3 . 5 . 1 2 Terminals 5 | . 3 . . . 1 1 Fabricators . | . . . . . . . Repair Stations 1 | . . . . . . 1 Recycling Units . | . . . . . . . Scanalyzers . | . . . . . . . Garrison Access . | . . . . . . . Total Hacks 76 | . 14 . 50 . 5 7 Successful 66 | . 9 . 50 . 3 4 Failed 10 | . 5 . . . 2 3 Catastrophic . | . . . . . . . Database Lockouts . | . . . . . . . Manual 10 | . 7 . 2 . 1 . Terminals 22 | . 14 . . . 5 3 Fabricators . | . . . . . . . Repair Stations 4 | . . . . . . 4 Recycling Units . | . . . . . . . Scanalyzers . | . . . . . . . Garrison Access . | . . . . . . . Terminal Hacks 58 | . 4 . 50 . 2 2 Record 49 | . . . 49 . . . Alert Level 1 | . . . . . 1 . Locate Traps 3 | . 2 . . . . 1 Zone Layout 4 | . 2 . . . 1 1 EX-Prototype ID Bank 1 | . . . 1 . . . Fabricator Hacks . | . . . . . . . Repair Station Hacks 2 | . . . . . . 2 Scan Component 1 | . . . . . . 1 Repair 1 | . . . . . . 1 Recycling Unit Hacks . | . . . . . . . Scanalyzer . | . . . . . . . Garrison Access Hacks . | . . . . . . . Unauthorized Hacks 6 | . 5 . . . 1 . Terminals 6 | . 5 . . . 1 . Assimilate 4 | . 3 . . . 1 . Operators 2 | . 2 . . . . . Fabricators . | . . . . . . . Repair Stations . | . . . . . . . Recycling Units . | . . . . . . . Scanalyzers . | . . . . . . . Garrison Access . | . . . . . . . Data Cores Recovered . | . . . . . . . Used . | . . . . . . . Hacking Detections 6 | . 3 . . . 1 2 Full Trace Events 2 | . . . . . 1 1 Feedback Events . | . . . . . . . Feedback Blocked . | . . . . . . . Robot Schematics Acquired . | . . . . . . . Robots Built . | . . . . . . . Authchips . | . . . . . . . Time . | . . . . . . . Total Robot Build Rating . | . . . . . . . Part Schematics Acquired . | . . . . . . . Parts Built . | . . . . . . . Authchips . | . . . . . . . Time . | . . . . . . . Total Part Build Rating . | . . . . . . . Parts Repaired 1 | . . . . . . 1 Time 26 | . . . . . . 26 Parts Recycled . | . . . . . . . Recycled Matter . | . . . . . . . Retrieved Matter . | . . . . . . . Retrieved Components . | . . . . . . . Parts Scanalyzed . | . . . . . . . Part Schematics Acquired . | . . . . . . . Parts Damaged . | . . . . . . . Bothacking | -11 -10 -10 -10 -9 -8 -8 ------------ Run | Jun Mat Min Exi Min Mat Sto Used RIF Installer . | . . . . . . . Robots Hacked . | . . . . . . . Non-combat . | . . . . . . . Combat . | . . . . . . . Robot Hacks Applied . | . . . . . . . Relay Couplers Released . | . . . . . . . Fabnet Peak Effective % . | . . . . . . . Robots Rewired . | . . . . . . . Allies Hacked . | . . . . . . . Hacks Repelled . | . . . . . . . Allies | -11 -10 -10 -10 -9 -8 -8 -------- Run | Jun Mat Min Exi Min Mat Sto Total Allies 3 | . 1 2 . . . . Largest Group 2 | . 1 2 2 . . . Highest-Rated Group 38 | . 10 38 38 . . . Highest-Rated Ally 31 | . 10 31 31 . . . Total Orders . | . . . . . . . Ally Attacks . | . . . . . . . Total Damage . | . . . . . . . Kills . | . . . . . . . Allies Corrupted . | . . . . . . . Allies Melted . | . . . . . . . Intel | -11 -10 -10 -10 -9 -8 -8 ------- Run | Jun Mat Min Exi Min Mat Sto Robot Analysis Total . | . . . . . . . Derelict Logs Recovered . | . . . . . . . Drone Launches . | . . . . . . . Drone Recoveries . | . . . . . . . Exploration | -11 -10 -10 -10 -9 -8 -8 ------------- Run | Jun Mat Min Exi Min Mat Sto Turns Passed 2782 | 85 156 156 1050 206 863 266 Spaces Moved 1426 | 67 149 91 669 125 265 60 Core 7 | 3 . . . . . 4 Treads 922 | . . . 486 125 265 46 Legs . | . . . . . . . Wheels 497 | 64 149 91 183 . . 10 Hover . | . . . . . . . Flight . | . . . . . . . Fastest Speed 50 | 50 80 80 80 160 160 135 Average Speed 137 | 78 84 80 138 160 178 175 Slowest Speed 400 | 80 95 80 160 160 240 400 Overloaded Moves . | . . . . . . . Propulsion Burnouts . | . . . . . . . Robots Hopped . | . . . . . . . Cave-ins Triggered 1 | . . . 1 . . . Exploration Rate (%) 29 | 4 33 15 93 29 19 15 Regions Visited 6 Branch Regions 4 Pre-discovered Areas 1 | . . . 1 . . . Known Exits Taken . | . . . . . . . Unknown Exits Taken 6 | 1 1 1 1 1 1 . Scrap Searched 1 | . . . . 1 . . Spaces Dug 16 | . . . 16 . . . Terrain Destroyed 55 | . . . 17 . 38 . Melee . | . . . . . . . Projectile 17 | . . . 17 . . . AOE 38 | . . . . . 38 . Terrain Rammed . | . . . . . . . Walls Destroyed . | . . . . . . . Machines Disabled . | . . . . . . . Actions | -11 -10 -10 -10 -9 -8 -8 --------- Run | Jun Mat Min Exi Min Mat Sto Total 2068 | 93 167 174 741 131 568 194 Wait 463 | . 3 81 44 3 226 106 Move 1419 | 66 148 90 667 124 264 60 Hop . | . . . . . . . Pick Up 35 | 13 2 1 . 4 13 2 Fast Attach 5 | 3 1 . 1 . . . Attach 22 | 4 2 1 1 . 10 4 Detach 2 | . . . . . 2 . Swap 13 | . 1 . 3 . 7 2 Drop 13 | 2 3 1 2 . 3 2 Fire 83 | 5 7 . 18 . 43 10 Melee 8 | . . . . . . 8 Ram . | . . . . . . . Kick . | . . . . . . . Crush . | . . . . . . . Escape Stasis 1 | . . . 1 . . . Rewire 4 | . . . 4 . . . Trap . | . . . . . . . Miscellaneous . | . . . . . . . Route ------- -11/Junkyard -10/Materials -10/Mines -10/Exiles -9/Mines -8/Materials -8/Storage History --------- Turn | Location | Event 21 | -11/Junkyard | Discovered new exit (range 14) 86 | -11/Junkyard | Entered Materials 230 | -10/Materials | Discovered new exit (range 14) 242 | -10/Materials | Entered Mines 306 | -10/Mines | Build established: Mutant 368 | -10/Mines | Deemed a non-threat by the Exiles lab entrance 368 | -10/Mines | Discovered new exit (range 5) 398 | -10/Mines | Entered Exiles 398 | -10/Exiles | Accompanied by 2 allies 428 | -10/Exiles | Led the pair of lost Derelicts to a safe place 436 | -10/Exiles | Met 8R-AWN 448 | -10/Exiles | Met EX-HEX 495 | -10/Exiles | Met EX-BIN 507 | -10/Exiles | Aligned with FarCom system 508 | -10/Exiles | Given EX-Vault access code 554 | -10/Exiles | Opened EX-Vault 559 | -10/Exiles | Found Prototype Device 559 | -10/Exiles | Identified Cloak of Protection 612 | -10/Exiles | Warned to stay clear of 0b10 Research branches 765 | -10/Exiles | Met EX-DEC 825 | -10/Exiles | Visited The Gauntlet 1035 | -10/Exiles | Learned location of Zion (-7) 1117 | -10/Exiles | Discovered new exit (range 12) 1298 | -10/Exiles | Crushed by falling debris 1299 | -10/Exiles | Core integrity fell below 50% 1448 | -10/Exiles | Left Exiles lab with Cloak of Protection 1448 | -10/Exiles | Entered Mines 1483 | -9/Mines | Met a Derelict bent on vengeance 1636 | -9/Mines | Discovered new exit (range 11) 1654 | -9/Mines | Entered Materials 1654 | -8/Materials | Evolved 4 slots: Power x1, Propulsion x2, Utility x1 2362 | -8/Materials | Lost 3 parts (1p1n1u) 2379 | -8/Materials | Discovered new exit (range 13) 2517 | -8/Materials | Entered Storage 2566 | -8/Storage | Repaired Lgt. Treads 2669 | -8/Storage | Build established: Scavenger-Skirmisher 2762 | -8/Storage | Core integrity fell below 50% 2776 | -8/Storage | Core integrity fell below 20% 2783 | -8/Storage | Destroyed by H-55 Commando with Gauss Rifle Last Messages --------------- 02765_ K-01 Serf collects debris. 02765_ R-06 Scavenger collects Aluminum Leg. 02766_ Penetrated by Slug. 02766_ U-05 Engineer destroyed. 02769_ Penetrated by Slug. 02770_ K-01 Serf collects debris. 02772_ Penetrated by Slug. 02774_ K-01 Serf collects debris. 02774_ Arm. Wheel destroyed. 02774_ R-06 Scavenger inserts Lgt. Nuclear Core into recycling unit. 02775_ K-01 Serf collects debris. 02775_ Penetrated by Slug. 02777_ R-06 Scavenger inserts Imp. Heat Sink into recycling unit. 02778_ K-01 Serf collects debris. 02778_ Critical hit (Burn: +37). 02779_ K-01 Serf collects debris. 02780_ Slug penetrates Recycling Unit. 02780_ R-06 Scavenger inserts Wheel into recycling unit. 02781_ K-01 Serf collects debris. 02783_ Penetrated by Slug. Map ----- +----------------------------------------------------+ | | | | | | | | | | | | | | | | | ????????????????????????????????????????????????? | | ????????????????????????????????????????????????? | | ????????????????????????????????????????????????? | | ????????????????????????????????????????????????? | | ??????????????????????????????????#######???#???? | | ??????????????????????????######### #???????? | | ?????????????????????????? # #???????? | | ?????????????????????#???# # #??#????# | | ?????????????????????#???# # ^ ^^#???????? | | ?????????????????????#???# #^^ ^###?????? | | ?????????????????????#???# # ######### | | ?????????????????????#???# # # # | | ?????????????????????#???# # # # | | ?????????????????????#???# # # """ # | | ?????????????????????#???# # # """ # | | ?????????????????????#??##;##+##### !#[ """ # | | ?????????????????######## = !# % # | | ??????????????# u h@ g %k %%;%= # | | ??????????????#ga^#######""" g% * k# ! # | | ??????????????g??^??? #"Yrw = **#!" " # | | ?????????????????^??? #""" ##### "R" # | | ????????????????????? # #?# """ # | | ???????????????^^???? # T"########### | | ????????????????????? # """ ""# #? | | ????????????????????? + """ ### #? | | ?????????????????????" # """ ### #? | | ?????????????????????" # # ## | | ?????????????????????" # + #? | | ?????????????????????" # # #? | | ???????????????g?????" #### # #? | | ????????????????g???? #??# # #? | | ?????????????????????####??# + ## | | ?????????????????????#?????# ####### ##########? | | ???????????????????????????# #?????# # ##????? | | ???????????????????????????# #?????# # #????? | | ???????????????????????????# #?????# # ###??? | | ???????????????????????????# #??#### # + #??? | | ???????????????????????????# #### ## # T## #??? | | ????????????????????????????????????????????????? | | ????????????????????????????????????????????????? | | ????????????????????????????????????????????????? | | ????????????????????????????????????????????????? | +----------------------------------------------------+ Best States ------------- Heat Dissipation 45 Energy Generation 19 Energy Capacity 265 Matter Stores 300 Matter Capacity 300 Sight Range 16 Terrain Scan Range 16 Terrain Scan Density 10 Cloak Strength 5 Evasion (%) 44 Recoil Reduction 3 Item Schematics ----------------- None Robot Schematics ------------------ None Fabricated ------------ Nothing Alien Tech Used ----------------- None Achievements -------------- None Challenges ------------ None Game ------ Seed TeslaMatterEngine Manual? 0 Play Time 00:44:37 Cumulative 84.1 hours Start 2023.08.06 @ 23:18:05 End 2023.08.07 @ 03:07:55 Sessions 3 Manual Loads 0 Difficulty Rogue Special Mode None Game No. 104 Rogue 104 Adventurer 0 Explorer 0 Win Type - Total 0 Types 0/0/0/0/0/0/0/0/0 Lore% 29 Gallery% 43 Achievement% 29 Wizard Run 0 Options --------- ASCII 0 Keyboard 0 Movement Mouse Keybinds 0 Fullscreen 1 Font 24/Smallcaps Map View 76x50 Tactical HUD 1 Map Filters NONE Filters NONE Steam 1 RUN: 5380062c-545f-4955-922a-c94ec740a4db